[Event "Late-Titled-Tuesday-Blitz-March-19-2024"]
[Site "Chess.com"]
[Date "2024.03.19"]
[Round "1"]
[White "Schattman"]
[Black "DrKerfuffle"]
[Result "0-1"]
[WhiteElo "2510"]
[BlackElo "2868"]
[TimeControl "180+1"]
[EndTime "14:08:15 PDT"]
[Termination "DrKerfuffle won on time"]

1. d4 {[%clk 0:03:00.9]} 1... Nf6 {[%clk 0:02:58.7]} 2. Nf3 {[%clk 0:02:58.5]}
2... g6 {[%clk 0:02:58]} 3. g3 {[%clk 0:02:58.9]} 3... Bg7 {[%clk 0:02:58.3]} 4.
Bg2 {[%clk 0:02:59.8]} 4... O-O {[%clk 0:02:58.7]} 5. O-O {[%clk 0:03:00.4]}
5... c6 {[%clk 0:02:58.5]} 6. c4 {[%clk 0:02:57.9]} 6... d6 {[%clk 0:02:58.6]}
7. h3 {[%clk 0:02:56.5]} 7... Ne4 {[%clk 0:02:55.8]} 8. Nbd2 {[%clk 0:02:54]}
8... d5 {[%clk 0:02:53.6]} 9. e3 {[%clk 0:02:51.6]} 9... Nxd2 {[%clk 0:02:40.8]}
10. Nxd2 {[%clk 0:02:49.5]} 10... Bf5 {[%clk 0:02:35.5]} 11. cxd5 {[%clk
0:02:48.8]} 11... cxd5 {[%clk 0:02:36.4]} 12. Qb3 {[%clk 0:02:46.8]} 12... Be6
{[%clk 0:02:09.4]} 13. Qxb7 {[%clk 0:02:45.1]} 13... Nd7 {[%clk 0:02:10]} 14.
Qb3 {[%clk 0:02:44.9]} 14... Qa5 {[%clk 0:02:04]} 15. Qc3 {[%clk 0:02:40.5]}
15... Qa6 {[%clk 0:01:58.8]} 16. Rd1 {[%clk 0:02:27.1]} 16... Rfc8 {[%clk
0:01:57.9]} 17. Bf1 {[%clk 0:02:27]} 17... Qb6 {[%clk 0:01:30.2]} 18. Qb3 {[%clk
0:02:26.8]} 18... Qd6 {[%clk 0:01:26]} 19. Bg2 {[%clk 0:02:13.8]} 19... Rab8
{[%clk 0:01:22.9]} 20. Qd3 {[%clk 0:02:13.7]} 20... Bf5 {[%clk 0:01:22.7]} 21.
Qe2 {[%clk 0:02:12.8]} 21... Rc2 {[%clk 0:01:17.6]} 22. g4 {[%clk 0:02:09.3]}
22... Be6 {[%clk 0:01:15.8]} 23. Qd3 {[%clk 0:02:07.2]} 23... Rbc8 {[%clk
0:01:13.1]} 24. Nb3 {[%clk 0:02:06.4]} 24... R2c7 {[%clk 0:00:56.7]} 25. Bd2
{[%clk 0:02:01.5]} 25... f5 {[%clk 0:00:56.1]} 26. g5 {[%clk 0:01:53.3]} 26...
Bf7 {[%clk 0:00:41.4]} 27. Rac1 {[%clk 0:01:52.4]} 27... e5 {[%clk 0:00:38.1]}
28. Rxc7 {[%clk 0:01:46.8]} 28... Rxc7 {[%clk 0:00:38]} 29. Rc1 {[%clk 0:01:47]}
29... e4 {[%clk 0:00:32.6]} 30. Qb5 {[%clk 0:01:37.6]} 30... Nb6 {[%clk
0:00:31.5]} 31. Rxc7 {[%clk 0:01:29.9]} 31... Qxc7 {[%clk 0:00:32.4]} 32. Qc5
{[%clk 0:01:29.7]} 32... Qd7 {[%clk 0:00:29.8]} 33. Bf1 {[%clk 0:01:26.4]} 33...
Bf8 {[%clk 0:00:29.7]} 34. Qb5 {[%clk 0:01:26.5]} 34... Qd8 {[%clk 0:00:29.5]}
35. h4 {[%clk 0:01:25.4]} 35... h6 {[%clk 0:00:29.5]} 36. gxh6 {[%clk
0:01:15.3]} 36... Qxh4 {[%clk 0:00:30.4]} 37. a4 {[%clk 0:01:14.2]} 37... Qg4+
{[%clk 0:00:24.8]} 38. Bg2 {[%clk 0:01:11.4]} 38... Nc4 {[%clk 0:00:23.2]} 39.
Bc3 {[%clk 0:00:59.1]} 39... Qd1+ {[%clk 0:00:21.6]} 40. Bf1 {[%clk 0:00:55.1]}
40... Qg4+ {[%clk 0:00:21]} 41. Bg2 {[%clk 0:00:54.9]} 41... Bxh6 {[%clk
0:00:19.9]} 42. Qb8+ {[%clk 0:00:49.5]} 42... Kg7 {[%clk 0:00:19.5]} 43. Nc5
{[%clk 0:00:47.4]} 43... Qd1+ {[%clk 0:00:18.7]} 44. Kh2 {[%clk 0:00:47.4]}
44... Qh5+ {[%clk 0:00:18.6]} 45. Kg1 {[%clk 0:00:47.3]} 45... Nxe3 {[%clk
0:00:18.8]} 46. Qg3 {[%clk 0:00:32.7]} 46... Qd1+ {[%clk 0:00:15.9]} 47. Kh2
{[%clk 0:00:32.6]} 47... Ng4+ {[%clk 0:00:16.5]} 48. Kh3 {[%clk 0:00:29.1]}
48... Qg1 {[%clk 0:00:13.7]} 49. f3 {[%clk 0:00:19.3]} 49... Nf2+ {[%clk
0:00:12.1]} 50. Kh4 {[%clk 0:00:10.8]} 50... g5+ {[%clk 0:00:11.8]} 51. Qxg5+
{[%clk 0:00:09]} 51... Bxg5+ {[%clk 0:00:12.7]} 52. Kxg5 {[%clk 0:00:08.8]}
52... Qxg2+ {[%clk 0:00:12.1]} 53. Kf4 {[%clk 0:00:09.7]} 53... Nd3+ {[%clk
0:00:11.3]} 54. Nxd3 {[%clk 0:00:08.9]} 54... exd3 {[%clk 0:00:10.5]} 55. Ke5
{[%clk 0:00:09.1]} 55... d2 {[%clk 0:00:10.3]} 56. Bxd2 {[%clk 0:00:08.5]} 56...
Qxd2 {[%clk 0:00:11.2]} 0-1

[Event "Late-Titled-Tuesday-Blitz-March-19-2024"]
[Site "Chess.com"]
[Date "2024.03.19"]
[Round "1"]
[White "KNVB"]
[Black "EternalNight8"]
[Result "1-0"]
[WhiteElo "2809"]
[BlackElo "2479"]
[TimeControl "180+1"]
[EndTime "14:08:18 PDT"]
[Termination "KNVB won by resignation"]

1. e4 {[%clk 0:03:00.9]} 1... e5 {[%clk 0:02:59.7]} 2. Nf3 {[%clk 0:03:01.1]}
2... Nf6 {[%clk 0:03:00]} 3. Nc3 {[%clk 0:03:00.8]} 3... Nc6 {[%clk 0:02:59.6]}
4. Nd5 {[%clk 0:03:00.6]} 4... d6 {[%clk 0:02:16.3]} 5. d4 {[%clk 0:02:55]} 5...
exd4 {[%clk 0:02:07]} 6. Nxd4 {[%clk 0:02:54.6]} 6... Be7 {[%clk 0:02:04.1]} 7.
Bc4 {[%clk 0:01:43]} 7... O-O {[%clk 0:02:00.5]} 8. O-O {[%clk 0:01:43.4]} 8...
Nxd5 {[%clk 0:01:47.9]} 9. Bxd5 {[%clk 0:01:29.8]} 9... Nxd4 {[%clk 0:01:46.4]}
10. Qxd4 {[%clk 0:01:30.7]} 10... Bf6 {[%clk 0:01:40.6]} 11. Qd3 {[%clk
0:01:30.5]} 11... Rb8 {[%clk 0:01:22.7]} 12. c3 {[%clk 0:01:17.3]} 12... Be6
{[%clk 0:01:19]} 13. Be3 {[%clk 0:01:09.8]} 13... Bxd5 {[%clk 0:01:09.4]} 14.
Qxd5 {[%clk 0:00:47.4]} 14... b6 {[%clk 0:01:08.4]} 15. Rfe1 {[%clk 0:00:32.2]}
15... Re8 {[%clk 0:01:07.1]} 16. Bf4 {[%clk 0:00:30]} 16... Qe7 {[%clk
0:01:03.9]} 17. a4 {[%clk 0:00:22.9]} 17... a5 {[%clk 0:01:02.8]} 18. g3 {[%clk
0:00:15.8]} 18... Be5 {[%clk 0:01:02.7]} 19. Bd2 {[%clk 0:00:15.4]} 19... g6
{[%clk 0:01:01.1]} 20. Kg2 {[%clk 0:00:13.7]} 20... h5 {[%clk 0:00:59.8]} 21. h3
{[%clk 0:00:13.1]} 21... Bg7 {[%clk 0:00:57.8]} 22. Rad1 {[%clk 0:00:09]} 22...
Qe6 {[%clk 0:00:55.8]} 23. Bg5 {[%clk 0:00:04.2]} 23... Qxd5 {[%clk 0:00:34]}
24. exd5 {[%clk 0:00:05.1]} 24... Re5 {[%clk 0:00:33.9]} 25. Bf4 {[%clk
0:00:02.4]} 25... Ree8 {[%clk 0:00:32.4]} 26. Kf3 {[%clk 0:00:01.8]} 26... Kf8
{[%clk 0:00:32.2]} 27. g4 {[%clk 0:00:01.7]} 27... hxg4+ {[%clk 0:00:31.5]} 28.
hxg4 {[%clk 0:00:02.6]} 28... Rxe1 {[%clk 0:00:31]} 29. Rxe1 {[%clk 0:00:03.5]}
29... Re8 {[%clk 0:00:31.1]} 30. Rxe8+ {[%clk 0:00:03.9]} 30... Kxe8 {[%clk
0:00:31.5]} 31. Ke4 {[%clk 0:00:04.7]} 31... Kd7 {[%clk 0:00:30.4]} 32. Kd3
{[%clk 0:00:05.2]} 32... c6 {[%clk 0:00:30]} 33. Kc4 {[%clk 0:00:04.2]} 33...
Kc7 {[%clk 0:00:25.3]} 34. Bd2 {[%clk 0:00:03.9]} 34... f5 {[%clk 0:00:23.3]}
35. f3 {[%clk 0:00:03.4]} 35... fxg4 {[%clk 0:00:23.1]} 36. fxg4 {[%clk
0:00:04.3]} 36... Be5 {[%clk 0:00:23.3]} 37. b4 {[%clk 0:00:03.8]} 37... axb4
{[%clk 0:00:23.8]} 38. cxb4 {[%clk 0:00:04.7]} 38... Kb7 {[%clk 0:00:17.5]} 39.
dxc6+ {[%clk 0:00:05]} 39... Kxc6 {[%clk 0:00:18.4]} 40. b5+ {[%clk 0:00:05.8]}
40... Kc7 {[%clk 0:00:18]} 41. Kd5 {[%clk 0:00:05.3]} 41... Bg3 {[%clk
0:00:17.7]} 42. Bb4 {[%clk 0:00:02.7]} 42... Be5 {[%clk 0:00:16.9]} 43. a5
{[%clk 0:00:02.5]} 43... bxa5 {[%clk 0:00:17.8]} 44. Bxa5+ {[%clk 0:00:03.1]}
44... Kb7 {[%clk 0:00:17.6]} 45. Bb4 {[%clk 0:00:03.2]} 45... Kb6 {[%clk
0:00:17.2]} 46. Bxd6 {[%clk 0:00:03.5]} 46... Bg7 {[%clk 0:00:17.2]} 47. Kc4
{[%clk 0:00:03.7]} 47... Bf6 {[%clk 0:00:16.2]} 48. Bc5+ {[%clk 0:00:04.3]}
48... Kb7 {[%clk 0:00:15.9]} 49. Kd5 {[%clk 0:00:04.9]} 49... Bg7 {[%clk
0:00:15.9]} 50. Ke6 {[%clk 0:00:05.5]} 50... Bc3 {[%clk 0:00:15]} 51. Kf7 {[%clk
0:00:05.8]} 51... g5 {[%clk 0:00:15]} 52. Kg6 {[%clk 0:00:06.3]} 52... Bd2
{[%clk 0:00:15.2]} 53. Kf5 {[%clk 0:00:06.5]} 53... Bc1 {[%clk 0:00:14.7]} 54.
Be7 {[%clk 0:00:06.4]} 54... Kb6 {[%clk 0:00:14.7]} 55. Bxg5 {[%clk 0:00:07.3]}
55... Bb2 {[%clk 0:00:14.8]} 56. Bf6 {[%clk 0:00:07.4]} 56... Bc1 {[%clk
0:00:15.3]} 57. Bg5 {[%clk 0:00:07.6]} 57... Bb2 {[%clk 0:00:15.4]} 58. Bf4
{[%clk 0:00:08.4]} 58... Kxb5 {[%clk 0:00:15.2]} 59. g5 {[%clk 0:00:09]} 59...
Kc6 {[%clk 0:00:15.2]} 60. Ke6 {[%clk 0:00:06.6]} 60... Bc3 {[%clk 0:00:13.4]}
61. g6 {[%clk 0:00:07.1]} 61... Bg7 {[%clk 0:00:11.7]} 62. Be5 {[%clk
0:00:07.7]} 62... Bf8 {[%clk 0:00:11.9]} 63. Bf6 {[%clk 0:00:05.7]} 63... Kc7
{[%clk 0:00:11.3]} 64. Be7 {[%clk 0:00:04.5]} 64... Bh6 {[%clk 0:00:11.1]} 65.
Bg5 {[%clk 0:00:04.7]} 65... Bg7 {[%clk 0:00:09.2]} 66. Kf7 {[%clk 0:00:04.9]}
66... Bc3 {[%clk 0:00:09.1]} 67. Bf6 {[%clk 0:00:05.4]} 67... Bd2 {[%clk
0:00:08]} 68. g7 {[%clk 0:00:05.9]} 1-0

[Event "Late-Titled-Tuesday-Blitz-March-19-2024"]
[Site "Chess.com"]
[Date "2024.03.19"]
[Round "1"]
[White "fen_fire"]
[Black "Angry_Twin"]
[Result "0-1"]
[WhiteElo "2530"]
[BlackElo "2945"]
[TimeControl "180+1"]
[EndTime "14:08:25 PDT"]
[Termination "Angry_Twin won by checkmate"]

1. c3 {[%clk 0:03:00.2]} 1... Nf6 {[%clk 0:02:59.3]} 2. Nf3 {[%clk 0:02:58.4]}
2... d5 {[%clk 0:02:59.3]} 3. c4 {[%clk 0:02:57.9]} 3... e6 {[%clk 0:02:58.7]}
4. e3 {[%clk 0:02:55.1]} 4... Bd6 {[%clk 0:02:57.5]} 5. d4 {[%clk 0:02:52.5]}
5... O-O {[%clk 0:02:57.7]} 6. Nc3 {[%clk 0:02:52.9]} 6... b6 {[%clk 0:02:57.8]}
7. Bd3 {[%clk 0:02:47.9]} 7... Bb7 {[%clk 0:02:57.9]} 8. O-O {[%clk 0:02:48.4]}
8... Nbd7 {[%clk 0:02:55.6]} 9. b3 {[%clk 0:02:44.3]} 9... Qe7 {[%clk
0:02:54.4]} 10. Bb2 {[%clk 0:02:43.4]} 10... a6 {[%clk 0:02:54.6]} 11. Qe2
{[%clk 0:02:38.8]} 11... dxc4 {[%clk 0:02:48.8]} 12. Bxc4 {[%clk 0:02:34.9]}
12... b5 {[%clk 0:02:47.8]} 13. Bd3 {[%clk 0:02:33.4]} 13... c5 {[%clk
0:02:48.5]} 14. Rac1 {[%clk 0:02:28.1]} 14... Rac8 {[%clk 0:02:46.1]} 15. Rfd1
{[%clk 0:02:25]} 15... Rfd8 {[%clk 0:02:45.6]} 16. Bb1 {[%clk 0:02:21.5]} 16...
cxd4 {[%clk 0:02:43.3]} 17. Nxd4 {[%clk 0:02:19.9]} 17... Ne5 {[%clk 0:02:39.8]}
18. h3 {[%clk 0:02:15.3]} 18... Ng6 {[%clk 0:02:39.5]} 19. Bd3 {[%clk
0:01:57.3]} 19... Nh4 {[%clk 0:02:32.5]} 20. e4 {[%clk 0:01:50.2]} 20... Ng6
{[%clk 0:02:28.7]} 21. Bb1 {[%clk 0:01:42.2]} 21... Be5 {[%clk 0:01:35.2]} 22.
Nf3 {[%clk 0:01:30.6]} 22... Bb8 {[%clk 0:01:26.7]} 23. g3 {[%clk 0:01:18.6]}
23... Ne5 {[%clk 0:01:20.8]} 24. Nxe5 {[%clk 0:01:17.2]} 24... Bxe5 {[%clk
0:01:21.7]} 25. Rxd8+ {[%clk 0:01:05.9]} 25... Qxd8 {[%clk 0:01:20.7]} 26. Bd3
{[%clk 0:00:41.2]} 26... Qb6 {[%clk 0:01:08.6]} 27. Rc2 {[%clk 0:00:32.5]} 27...
Bxg3 {[%clk 0:00:58.8]} 28. Nd1 {[%clk 0:00:25.3]} 28... e5 {[%clk 0:00:31.9]}
29. Rxc8+ {[%clk 0:00:21.3]} 29... Bxc8 {[%clk 0:00:32.2]} 30. Ne3 {[%clk
0:00:20.3]} 30... Bf4 {[%clk 0:00:32.7]} 31. Nf5 {[%clk 0:00:19.3]} 31... Bxf5
{[%clk 0:00:32.3]} 32. exf5 {[%clk 0:00:20.2]} 32... Qd6 {[%clk 0:00:32.9]} 33.
Be4 {[%clk 0:00:17.4]} 33... h6 {[%clk 0:00:32.7]} 34. Kg2 {[%clk 0:00:16.8]}
34... Qd7 {[%clk 0:00:24.6]} 35. Qf3 {[%clk 0:00:12.8]} 35... Qc7 {[%clk
0:00:23]} 36. Ba3 {[%clk 0:00:10.5]} 36... a5 {[%clk 0:00:22]} 37. Qe2 {[%clk
0:00:08.3]} 37... b4 {[%clk 0:00:21.8]} 38. Bb2 {[%clk 0:00:08.3]} 38... Qc5
{[%clk 0:00:21.3]} 39. Qd3 {[%clk 0:00:06]} 39... Qc7 {[%clk 0:00:20.3]} 40. Bf3
{[%clk 0:00:05]} 40... h5 {[%clk 0:00:20.7]} 41. Be4 {[%clk 0:00:04.2]} 41... h4
{[%clk 0:00:21.1]} 42. Bf3 {[%clk 0:00:04.3]} 42... Qe7 {[%clk 0:00:21.2]} 43.
Be4 {[%clk 0:00:04.5]} 43... Kh7 {[%clk 0:00:21]} 44. Qc4 {[%clk 0:00:04.4]}
44... Qd6 {[%clk 0:00:20.4]} 45. Qd3 {[%clk 0:00:04.4]} 45... Qc5 {[%clk
0:00:18.7]} 46. Qc4 {[%clk 0:00:04]} 46... Qxc4 {[%clk 0:00:19.1]} 47. bxc4
{[%clk 0:00:04.9]} 47... Nxe4 {[%clk 0:00:20]} 48. Kf3 {[%clk 0:00:04.7]} 48...
Nc5 {[%clk 0:00:20.4]} 49. Kg4 {[%clk 0:00:04.7]} 49... Nd3 {[%clk 0:00:19.2]}
50. Ba1 {[%clk 0:00:03.8]} 50... Nxf2+ {[%clk 0:00:19.5]} 51. Kxh4 {[%clk
0:00:04.7]} 51... Ne4 {[%clk 0:00:20.2]} 52. Kh5 {[%clk 0:00:05]} 52... g6+
{[%clk 0:00:19.9]} 53. fxg6+ {[%clk 0:00:04.8]} 53... fxg6+ {[%clk 0:00:20.8]}
54. Kg4 {[%clk 0:00:05.7]} 54... Nc5 {[%clk 0:00:21.1]} 55. Kf3 {[%clk
0:00:05.5]} 55... Kg7 {[%clk 0:00:21.6]} 56. h4 {[%clk 0:00:04.1]} 56... Kf6
{[%clk 0:00:22]} 57. Kg4 {[%clk 0:00:05]} 57... Be3 {[%clk 0:00:21.8]} 58. Bb2
{[%clk 0:00:04.2]} 58... Nd3 {[%clk 0:00:20.9]} 59. Bc1 {[%clk 0:00:05.1]} 59...
Bxc1 {[%clk 0:00:21.1]} 60. h5 {[%clk 0:00:05.6]} 60... gxh5+ {[%clk 0:00:21.3]}
61. Kxh5 {[%clk 0:00:06.5]} 61... Kf5 {[%clk 0:00:22]} 62. c5 {[%clk 0:00:07]}
62... Nxc5 {[%clk 0:00:22.9]} 63. a4 {[%clk 0:00:06.5]} 63... Kf4 {[%clk
0:00:22.6]} 64. Kh4 {[%clk 0:00:07.1]} 64... Nxa4 {[%clk 0:00:23.3]} 65. Kh3
{[%clk 0:00:08]} 65... Kf3 {[%clk 0:00:23.5]} 66. Kh2 {[%clk 0:00:08.9]} 66...
Kf2 {[%clk 0:00:23.9]} 67. Kh1 {[%clk 0:00:09.8]} 67... e4 {[%clk 0:00:24.1]}
68. Kh2 {[%clk 0:00:07.4]} 68... e3 {[%clk 0:00:24]} 69. Kh1 {[%clk 0:00:08.3]}
69... e2 {[%clk 0:00:24.4]} 70. Kh2 {[%clk 0:00:09.2]} 70... e1=Q {[%clk
0:00:24.3]} 71. Kh3 {[%clk 0:00:10]} 71... Qe4 {[%clk 0:00:23.9]} 72. Kh2 {[%clk
0:00:10.9]} 72... Qh4# {[%clk 0:00:24.8]} 0-1

[Event "Late-Titled-Tuesday-Blitz-March-19-2024"]
[Site "Chess.com"]
[Date "2024.03.19"]
[Round "1"]
[White "kriscacco"]
[Black "Tunahan_Makaraci"]
[Result "1-0"]
[WhiteElo "2094"]
[BlackElo "2572"]
[TimeControl "180+1"]
[EndTime "14:08:28 PDT"]
[Termination "kriscacco won on time"]

1. d4 {[%clk 0:02:59.4]} 1... d5 {[%clk 0:02:59.2]} 2. Nf3 {[%clk 0:02:59.4]}
2... e6 {[%clk 0:02:57.8]} 3. c4 {[%clk 0:02:58.9]} 3... c5 {[%clk 0:02:58]} 4.
cxd5 {[%clk 0:02:58.2]} 4... exd5 {[%clk 0:02:58.9]} 5. Nc3 {[%clk 0:02:57.9]}
5... Nc6 {[%clk 0:02:58.9]} 6. e3 {[%clk 0:02:55.2]} 6... Nf6 {[%clk 0:02:56.7]}
7. Be2 {[%clk 0:02:53.7]} 7... a6 {[%clk 0:02:56.5]} 8. O-O {[%clk 0:02:52.8]}
8... c4 {[%clk 0:02:56.8]} 9. a4 {[%clk 0:02:50]} 9... Na5 {[%clk 0:02:54]} 10.
Nd2 {[%clk 0:02:48.2]} 10... Bd6 {[%clk 0:02:52.4]} 11. b3 {[%clk 0:02:47.7]}
11... O-O {[%clk 0:02:10]} 12. g3 {[%clk 0:02:42.1]} 12... Be6 {[%clk
0:01:50.8]} 13. Ba3 {[%clk 0:02:34.3]} 13... Bxa3 {[%clk 0:01:49.9]} 14. Rxa3
{[%clk 0:02:33.4]} 14... Qc7 {[%clk 0:01:40.9]} 15. Qa1 {[%clk 0:02:28.6]} 15...
Rfc8 {[%clk 0:01:36.5]} 16. b4 {[%clk 0:02:23.7]} 16... Nc6 {[%clk 0:01:36.1]}
17. b5 {[%clk 0:02:23]} 17... Ne7 {[%clk 0:01:35.7]} 18. Rb1 {[%clk 0:02:20]}
18... Qd7 {[%clk 0:01:29.8]} 19. Qb2 {[%clk 0:02:16.7]} 19... Bh3 {[%clk
0:01:28]} 20. Bf3 {[%clk 0:02:13]} 20... Qf5 {[%clk 0:01:22.2]} 21. Bh1 {[%clk
0:01:58]} 21... axb5 {[%clk 0:01:09.3]} 22. Qxb5 {[%clk 0:01:52.4]} 22... Ng4
{[%clk 0:01:06.5]} 23. Nf3 {[%clk 0:01:50.5]} 23... Rc7 {[%clk 0:00:42.5]} 24.
Ra2 {[%clk 0:01:48.6]} 24... h6 {[%clk 0:00:41]} 25. Qb2 {[%clk 0:01:46.5]}
25... Nc6 {[%clk 0:00:35.3]} 26. Qc2 {[%clk 0:01:44.7]} 26... Qe6 {[%clk
0:00:32.7]} 27. Rb5 {[%clk 0:01:41.7]} 27... Ne7 {[%clk 0:00:26.1]} 28. Qd2
{[%clk 0:01:34]} 28... Rd8 {[%clk 0:00:22.6]} 29. Rab2 {[%clk 0:01:32.6]} 29...
Rdd7 {[%clk 0:00:20.4]} 30. Rb6 {[%clk 0:01:31.2]} 30... Rd6 {[%clk 0:00:16.5]}
31. a5 {[%clk 0:01:29.8]} 31... Rxb6 {[%clk 0:00:14.7]} 32. Rxb6 {[%clk
0:01:28.7]} 32... Nc6 {[%clk 0:00:14.9]} 33. Rb5 {[%clk 0:01:26.5]} 33... Nf6
{[%clk 0:00:14]} 34. Ne1 {[%clk 0:01:16]} 34... Ne7 {[%clk 0:00:11]} 35. Nc2
{[%clk 0:01:14.7]} 35... Qa6 {[%clk 0:00:09.7]} 36. Nb4 {[%clk 0:01:13]} 36...
Qd6 {[%clk 0:00:09.7]} 37. Rb6 {[%clk 0:01:10.6]} 37... Qd7 {[%clk 0:00:08.5]}
38. Rxf6 {[%clk 0:01:08.1]} 38... gxf6 {[%clk 0:00:07.5]} 39. Nbxd5 {[%clk
0:01:06.1]} 39... Nxd5 {[%clk 0:00:07.9]} 40. Nxd5 {[%clk 0:01:05.4]} 40... Rc6
{[%clk 0:00:08.3]} 41. e4 {[%clk 0:01:00.8]} 41... Kg7 {[%clk 0:00:04.9]} 42.
Qf4 {[%clk 0:00:55.7]} 42... c3 {[%clk 0:00:04.1]} 43. Bf3 {[%clk 0:00:41.1]}
43... c2 {[%clk 0:00:04.3]} 44. Qc1 {[%clk 0:00:40.8]} 44... Qd6 {[%clk
0:00:04.2]} 45. Ne3 {[%clk 0:00:34.8]} 45... Be6 {[%clk 0:00:04.1]} 46. d5
{[%clk 0:00:33.1]} 46... Rc3 {[%clk 0:00:03.4]} 47. dxe6 {[%clk 0:00:31.6]}
47... Qxe6 {[%clk 0:00:03.3]} 48. Kg2 {[%clk 0:00:28.5]} 48... Kf8 {[%clk
0:00:02.2]} 49. Nd5 {[%clk 0:00:24.9]} 49... Qe5 {[%clk 0:00:02.2]} 50. Nxc3
{[%clk 0:00:24.4]} 50... Qxc3 {[%clk 0:00:03.1]} 51. e5 {[%clk 0:00:21.7]} 51...
fxe5 {[%clk 0:00:03.2]} 52. Be4 {[%clk 0:00:22]} 52... Qd4 {[%clk 0:00:01.7]}
53. Qxc2 {[%clk 0:00:21.5]} 53... f5 {[%clk 0:00:02.2]} 54. Bxf5 {[%clk
0:00:21]} 54... Ke7 {[%clk 0:00:02.7]} 55. Be4 {[%clk 0:00:21]} 55... Qd6 {[%clk
0:00:01.6]} 56. Bxb7 {[%clk 0:00:20.4]} 56... Qd4 {[%clk 0:00:01.6]} 57. a6
{[%clk 0:00:19.7]} 57... Qb6 {[%clk 0:00:01.6]} 58. Qe4 {[%clk 0:00:19.6]} 58...
Kd6 {[%clk 0:00:01.7]} 59. Qd5+ {[%clk 0:00:19.4]} 59... Kc7 {[%clk 0:00:02.3]}
60. Qxe5+ {[%clk 0:00:20.1]} 60... Kd8 {[%clk 0:00:02.8]} 61. Qd5+ {[%clk
0:00:20.1]} 1-0

[Event "Late-Titled-Tuesday-Blitz-March-19-2024"]
[Site "Chess.com"]
[Date "2024.03.19"]
[Round "1"]
[White "ChristopherYoo"]
[Black "TheRigos"]
[Result "1/2-1/2"]
[WhiteElo "2945"]
[BlackElo "2543"]
[TimeControl "180+1"]
[EndTime "14:08:31 PDT"]
[Termination "Game drawn - insufficient material"]

1. c4 {[%clk 0:03:00.9]} 1... e6 {[%clk 0:02:57.8]} 2. Nf3 {[%clk 0:02:56.3]}
2... d5 {[%clk 0:02:58.2]} 3. g3 {[%clk 0:02:47.5]} 3... Nf6 {[%clk 0:02:58.5]}
4. Bg2 {[%clk 0:02:47.5]} 4... Be7 {[%clk 0:02:59.2]} 5. O-O {[%clk 0:02:47.3]}
5... O-O {[%clk 0:02:59.9]} 6. d4 {[%clk 0:02:44.3]} 6... dxc4 {[%clk
0:02:59.7]} 7. Qc2 {[%clk 0:02:34.6]} 7... a6 {[%clk 0:02:59.8]} 8. a4 {[%clk
0:02:30.3]} 8... Bd7 {[%clk 0:03:00]} 9. Rd1 {[%clk 0:02:25.8]} 9... Nc6 {[%clk
0:02:39.9]} 10. Bg5 {[%clk 0:02:06.2]} 10... Nb4 {[%clk 0:02:11.2]} 11. Qc1
{[%clk 0:01:41.4]} 11... Bc6 {[%clk 0:02:01.9]} 12. Nc3 {[%clk 0:01:31.5]} 12...
Ne4 {[%clk 0:01:37.9]} 13. Bxe7 {[%clk 0:01:29.9]} 13... Qxe7 {[%clk 0:01:38.8]}
14. Ne5 {[%clk 0:01:29.4]} 14... Nxc3 {[%clk 0:01:35.3]} 15. bxc3 {[%clk
0:01:26.8]} 15... Bxg2 {[%clk 0:01:33.6]} 16. Kxg2 {[%clk 0:01:27.4]} 16... Nd5
{[%clk 0:01:25.2]} 17. e4 {[%clk 0:01:25.1]} 17... Nf6 {[%clk 0:01:23.7]} 18. f3
{[%clk 0:01:25.7]} 18... c5 {[%clk 0:01:14.2]} 19. Qa3 {[%clk 0:01:21.2]} 19...
Qc7 {[%clk 0:01:09.1]} 20. Qxc5 {[%clk 0:01:17.8]} 20... Qxc5 {[%clk 0:01:02.4]}
21. dxc5 {[%clk 0:01:18.7]} 21... Rfc8 {[%clk 0:00:50.5]} 22. c6 {[%clk
0:01:18.8]} 22... bxc6 {[%clk 0:00:44.3]} 23. Nxc4 {[%clk 0:01:18.5]} 23... Rd8
{[%clk 0:00:34]} 24. Rxd8+ {[%clk 0:01:10.9]} 24... Rxd8 {[%clk 0:00:34.9]} 25.
Rb1 {[%clk 0:01:10.7]} 25... Nd7 {[%clk 0:00:29.5]} 26. Rd1 {[%clk 0:01:09.6]}
26... Kf8 {[%clk 0:00:29.7]} 27. Rd6 {[%clk 0:01:00.4]} 27... Ke7 {[%clk
0:00:22]} 28. Rxc6 {[%clk 0:01:00.6]} 28... Rb8 {[%clk 0:00:20.5]} 29. Rxa6
{[%clk 0:00:59.6]} 29... Rc8 {[%clk 0:00:20.1]} 30. Nb6 {[%clk 0:00:51.5]} 30...
Nxb6 {[%clk 0:00:17.1]} 31. Rxb6 {[%clk 0:00:52.4]} 31... Rxc3 {[%clk
0:00:16.6]} 32. a5 {[%clk 0:00:52.6]} 32... Rc2+ {[%clk 0:00:12.2]} 33. Kh3
{[%clk 0:00:52.1]} 33... Ra2 {[%clk 0:00:13.1]} 34. a6 {[%clk 0:00:51.7]} 34...
g5 {[%clk 0:00:08.5]} 35. Kg4 {[%clk 0:00:49.3]} 35... Kf6 {[%clk 0:00:07.1]}
36. h4 {[%clk 0:00:47.9]} 36... gxh4 {[%clk 0:00:06]} 37. Kxh4 {[%clk
0:00:44.6]} 37... Rh2+ {[%clk 0:00:03.8]} 38. Kg4 {[%clk 0:00:44.4]} 38... Ra2
{[%clk 0:00:04.7]} 39. f4 {[%clk 0:00:42.8]} 39... Kg6 {[%clk 0:00:04.2]} 40. e5
{[%clk 0:00:41.4]} 40... h5+ {[%clk 0:00:04.2]} 41. Kf3 {[%clk 0:00:39.7]} 41...
Kf5 {[%clk 0:00:03.3]} 42. Rb7 {[%clk 0:00:35.3]} 42... Ra3+ {[%clk 0:00:03.2]}
43. Kg2 {[%clk 0:00:35.5]} 43... Kg4 {[%clk 0:00:04.1]} 44. Rxf7 {[%clk
0:00:28.7]} 44... Ra2+ {[%clk 0:00:04.6]} 45. Kf1 {[%clk 0:00:28]} 45... Rxa6
{[%clk 0:00:05.5]} 46. Kf2 {[%clk 0:00:24.8]} 46... Ra2+ {[%clk 0:00:05.4]} 47.
Ke3 {[%clk 0:00:25.4]} 47... Ra3+ {[%clk 0:00:05.2]} 48. Kd4 {[%clk 0:00:24.4]}
48... Kxg3 {[%clk 0:00:03.3]} 49. f5 {[%clk 0:00:23]} 49... exf5 {[%clk
0:00:03.3]} 50. Rxf5 {[%clk 0:00:17.4]} 50... h4 {[%clk 0:00:03.7]} 51. e6
{[%clk 0:00:17.8]} 51... h3 {[%clk 0:00:02.9]} 52. e7 {[%clk 0:00:18.2]} 52...
Ra4+ {[%clk 0:00:02.2]} 53. Kd3 {[%clk 0:00:18.3]} 53... Ra3+ {[%clk 0:00:02.7]}
54. Ke2 {[%clk 0:00:12.4]} 54... Ra2+ {[%clk 0:00:03.1]} 55. Ke3 {[%clk
0:00:12.6]} 55... Ra3+ {[%clk 0:00:03.7]} 56. Kd4 {[%clk 0:00:13.1]} 56... Ra4+
{[%clk 0:00:04.2]} 57. Kd5 {[%clk 0:00:10.2]} 57... Ra5+ {[%clk 0:00:04.6]} 58.
Kc4 {[%clk 0:00:08.1]} 58... Ra4+ {[%clk 0:00:04.3]} 59. Kd5 {[%clk 0:00:04.6]}
59... Ra5+ {[%clk 0:00:04.6]} 60. Kc6 {[%clk 0:00:04.7]} 60... Ra6+ {[%clk
0:00:05]} 61. Kd7 {[%clk 0:00:03]} 61... Ra7+ {[%clk 0:00:05.4]} 62. Ke6 {[%clk
0:00:03.6]} 62... Rxe7+ {[%clk 0:00:05.1]} 63. Kxe7 {[%clk 0:00:04.1]} 63... h2
{[%clk 0:00:06]} 64. Rh5 {[%clk 0:00:04.4]} 64... Kg2 {[%clk 0:00:06.2]} 65.
Rg5+ {[%clk 0:00:05.1]} 65... Kf2 {[%clk 0:00:06.1]} 66. Rf5+ {[%clk 0:00:05.1]}
66... Kg2 {[%clk 0:00:06.7]} 67. Rg5+ {[%clk 0:00:05.3]} 67... Kf2 {[%clk
0:00:07.3]} 68. Rf5+ {[%clk 0:00:05.4]} 68... Kg2 {[%clk 0:00:07.8]} 69. Rh5
{[%clk 0:00:05.1]} 69... h1=R {[%clk 0:00:07]} 70. Rxh1 {[%clk 0:00:05.8]} 70...
Kxh1 {[%clk 0:00:07.5]} 1/2-1/2